fUSD/lending_fUSD_20250330
["ID","MTS","AMOUNT","RATE_DAILY","PERIOD"]
[356843324,1743317441184,-192.19,0.00020734,2]
[356843325,1743317441194,-829.07,0.00020738,2]
[356843326,1743317441203,-324.98,0.00020778,2]
[356843327,1743317441213,-10033.38,0.00020779,2]
[356843328,1743317441222,-151.41,0.00020784,2]
[356843329,1743317441231,-23900.0,0.00020794,2]
[356843330,1743317441240,-216.85752518,0.000208,2]
[356843331,1743317441249,-301.43,0.00020847,2]
[356843332,1743317441259,-3815.51,0.00020888,2]
[356843333,1743317441268,-1000.0,0.00020888,2]
[356843334,1743317441278,-24613.62764418,0.00020904,2]
[356843335,1743317441287,-508.94,0.00020916,2]
[356843336,1743317441297,-508.94,0.0002096,2]
[356843337,1743317441307,-19980.93,0.00020965,2]
[356843338,1743317441316,-150.0,0.00020998,7]
[356843339,1743317441325,-508.94,0.00021004,2]
[356843340,1743317441335,-508.94,0.00021048,2]
[356843341,1743317441344,-163.91,0.00021068,2]
[356843342,1743317441354,-508.94,0.00021092,2]
[356843343,1743317441363,-200.0,0.00021119,2]
[356843344,1743317441373,-508.94,0.00021136,2]
[356843345,1743317441382,-508.94,0.0002118,2]
[356843346,1743317441392,-508.94,0.00021225,2]
[356843347,1743317441401,-508.94,0.00021269,2]
[356843348,1743317441411,-250.0,0.00021286,2]
[356843349,1743317441420,-508.94,0.00021313,2]
[356843350,1743317441429,-1852.42,0.00021328,2]
[356843351,1743317441439,-508.94,0.00021357,2]
[356843352,1743317441448,-567.21,0.00021376,2]
[356843353,1743317441458,-508.94,0.00021401,2]
[356843354,1743317441467,-8400.72,0.00021411,2]
[356843355,1743317441477,-508.94,0.00021445,2]
[356843356,1743317441487,-508.94,0.00021489,2]
[356843357,1743317441498,-2590.88817709,0.00021493,2]
[356843358,1743317441507,-508.94,0.00021533,2]
[356843359,1743317441516,-508.94,0.00021577,2]
[356843360,1743317441525,-195.34,0.0002162,2]
[356843361,1743317441535,-508.94,0.00021621,2]
[356843362,1743317441544,-508.94,0.00021665,2]
[356843363,1743317441554,-508.94,0.00021709,2]
[356843364,1743317441563,-508.94,0.00021753,2]
[356843365,1743317441572,-1586.44,0.00021758,2]
[356843366,1743317441582,-162.56,0.00021765,2]
[356843367,1743317441591,-150.0,0.00021917,2]
[356843368,1743317441600,-151.74,0.00022108,2]
[356843369,1743317441609,-510.8,0.00022298,2]
[356843370,1743317441619,-2900.0,0.000225,15]
[356843371,1743317441628,-2000.0,0.000225,4]
[356843372,1743317441638,-2590.88817709,0.00022592,2]
[356843373,1743317441647,-168.18,0.00022666,2]
[356843374,1743317441656,-301.56298907,0.00022749,2]
[356843375,1743317441666,-1212.9546,0.00022795,10]
[356843376,1743317441675,-553.0,0.0002285,2]
[356843377,1743317441684,-168.18,0.00022968,2]
[356843378,1743317441693,-200.0,0.00023,2]
[356843379,1743317441703,-1000.0,0.0002309,2]
[356843380,1743317441712,-168.18,0.0002327,2]
[356843381,1743317441722,-150.0,0.00023287,2]
[356843382,1743317441731,-151.74,0.00023477,2]
[356843383,1743317441740,-1000.0,0.00023499,2]
[356843384,1743317441749,-168.18,0.00023572,2]
[356843385,1743317441759,-1293.495,0.00023575,2]
[356843386,1743317441769,-2057.043,0.00023575,2]
[356843387,1743317441779,-646.504,0.00023575,2]
[356843388,1743317441789,-1429.167,0.00023575,2]
[356843389,1743317441798,-576.192,0.00023575,2]
[356843390,1743317441807,-795.0,0.00023575,2]
[356843391,1743317441816,-1286.221,0.00023575,2]
[356843392,1743317441826,-3307.066,0.00023575,2]
[356843393,1743317441835,-347.337,0.00023575,2]
[356843394,1743317441845,-166.778,0.00023575,2]
[356843395,1743317441854,-3947.0,0.00023575,2]
[356843396,1743317441865,-219.762,0.00023575,2]
[356843397,1743317441875,-163.631,0.00023575,2]
[356843398,1743317441885,-1041.291,0.00023575,2]
[356843399,1743317441895,-150.859,0.00023575,2]
[356843400,1743317441904,-214.753,0.00023575,2]
[356843401,1743317441914,-299.224,0.00023575,2]
[356843402,1743317441924,-1121.725,0.00023575,2]
[356843403,1743317441933,-151.41,0.00023681,2]
[356843404,1743317441943,-2590.88817709,0.00023691,2]
[356843405,1743317441953,-638.82,0.00023836,2]
[356843406,1743317441962,-1586.44,0.00024022,2]
[356843407,1743317441971,-572.60714031,0.00024207,2]
[356843408,1743317441981,-161.69657182,0.00024567,2]
[356843409,1743317441990,-150.0,0.00024657,2]
[356843410,1743317441999,-2590.88817709,0.0002479,2]
[356843411,1743317442008,-151.41,0.0002479,2]
[356843412,1743317442017,-151.41,0.0002479,2]
[356843413,1743317442026,-151.41,0.0002479,2]
[356843414,1743317442037,-151.41,0.0002479,2]
[356843415,1743317442047,-151.41,0.0002479,2]
[356843416,1743317442056,-23861.61607564,0.000248,2]
[356843417,1743317442065,-625680.732243,0.000248,3]
[356843418,1743317442074,-151.41,0.0002489,2]
[356843419,1743317442084,-151.41,0.0002489,2]
[356843420,1743317442093,-151.41,0.0002489,2]
[356843421,1743317442102,-151.41,0.0002489,2]
[356843422,1743317442111,-151.41,0.0002489,2]
[356843423,1743317442121,-183.891455,0.000249,7]
[356843424,1743317442131,-151.0,0.000249,7]
[356843425,1743317442140,-151.0,0.000249,7]
[356843426,1743317442150,-151.0,0.000249,7]
[356843427,1743317442159,-151.0,0.000249,7]
[356843428,1743317442168,-151.0,0.000249,7]
[356843429,1743317442177,-151.0,0.000249,7]
[356843430,1743317442187,-151.0,0.000249,7]
[356843431,1743317442196,-151.0,0.000249,7]
[356843432,1743317442205,-151.0,0.000249,7]
[356843433,1743317442214,-160.19209686,0.000249,2]
[356843434,1743317442223,-151.0,0.000249,7]
[356843435,1743317442232,-151.0,0.000249,7]
[356843436,1743317442242,-151.0,0.000249,7]
[356843437,1743317442251,-151.0,0.000249,7]
[356843438,1743317442260,-151.0,0.000249,7]
[356843439,1743317442269,-151.0,0.000249,7]
[356843440,1743317442278,-151.0,0.000249,7]
[356843441,1743317442288,-151.0,0.000249,7]
[356843442,1743317442297,-151.0,0.000249,7]
[356843443,1743317442306,-151.0,0.000249,7]
[356843444,1743317442316,-542.319687,0.000249,7]
[356843445,1743317442325,-2360.569524,0.000249,7]
[356843446,1743317442334,-151.0,0.000249,7]
[356843447,1743317442344,-542.319687,0.000249,7]
[356843448,1743317442353,-277.446909,0.000249,7]
[356843449,1743317442362,-277.446909,0.000249,7]
[356843450,1743317442371,-151.0,0.000249,7]
[356843451,1743317442381,-1828.083771,0.000249,7]
[356843452,1743317442390,-1828.083771,0.000249,7]
[356843453,1743317442400,-151.0,0.000249,7]
[356843454,1743317442408,-193.895808,0.000249,7]
[356843455,1743317442418,-151.0,0.000249,7]
[356843456,1743317442427,-193.895808,0.000249,7]
[356843457,1743317442436,-189.323502,0.000249,7]
[356843458,1743317442445,-151.0,0.000249,7]
[356843459,1743317442454,-151.0,0.000249,7]
[356843460,1743317442464,-746.436611,0.000249,7]
[356843461,1743317442474,-746.436611,0.000249,7]
[356843462,1743317442483,-151.0,0.000249,7]
[356843463,1743317442492,-151.0,0.000249,7]
[356843464,1743317442501,-356.875184,0.000249,7]
[356843465,1743317442511,-356.875184,0.000249,7]
[356843466,1743317442520,-232.619962,0.000249,7]
[356843467,1743317442530,-232.619962,0.000249,7]
[356843468,1743317442539,-151.0,0.000249,7]
[356843469,1743317442548,-293.88731,0.000249,7]
[356843470,1743317442557,-151.0,0.000249,7]
[356843471,1743317442566,-151.0,0.000249,7]
[356843472,1743317442576,-151.0,0.000249,7]
[356843473,1743317442585,-151.0,0.000249,7]
[356843474,1743317442594,-151.0,0.000249,7]
[356843475,1743317442603,-151.0,0.000249,7]
[356843476,1743317442613,-151.0,0.000249,7]
[356843477,1743317442622,-151.0,0.000249,7]
[356843478,1743317442631,-151.0,0.000249,7]
[356843479,1743317442641,-151.0,0.000249,7]
[356843480,1743317442650,-151.0,0.000249,7]
[356843481,1743317442659,-293.88731,0.000249,7]
[356843482,1743317442668,-151.0,0.000249,7]
[356843483,1743317442678,-151.0,0.000249,7]
[356843484,1743317442687,-151.0,0.000249,7]
[356843485,1743317442696,-151.0,0.000249,7]
[356843486,1743317442705,-151.0,0.000249,7]
[356843487,1743317442715,-151.0,0.000249,7]
[356843488,1743317442724,-151.0,0.000249,7]
[356843489,1743317442733,-151.0,0.000249,7]
[356843490,1743317442742,-151.0,0.000249,7]
[356843491,1743317442752,-151.0,0.000249,7]
[356843492,1743317442761,-151.0,0.000249,7]
[356843493,1743317442770,-151.0,0.000249,7]
[356843494,1743317442779,-151.0,0.000249,7]
[356843495,1743317442789,-278.48205791,0.000249,7]
[356843496,1743317442798,-317862.38992243,0.000249,3]
[356843497,1743317442951,-20898.99921264,0.000249,3]
[356843517,1743317445319,-295.51106762,0.000249,3]
[356843518,1743317446205,-252.8338836,0.000249,3]
[356843519,1743317446293,-4432.66433004,0.000249,3]
[356843520,1743317446305,-338.65,0.000249,3]
[356843521,1743317446358,-21453.3369994,0.000249,3]
[356843522,1743317446522,-8337.44095745,0.000249,3]
[356843523,1743317446563,-9387.990626,0.000249,3]
[356843524,1743317446575,-726.52366915,0.000249,3]
[356843525,1743317446586,-572.65026246,0.000249,3]
[356843547,1743317461199,-150.584,0.00024565,2]
[356843548,1743317461224,-67.83602402,0.000249,3]
[356843549,1743317524685,-250.0,0.000148,2]
[356843550,1743318045898,-300.0,0.000148,2]
[356843589,1743318631480,-420.7566,0.000148,2]
[356843590,1743318631489,-150.0,0.00014899,2]
[356843591,1743318631499,-2212.08601389,0.000149,2]
[356843592,1743318631530,-747.22838611,0.000149,2]
[356843593,1743318631539,-612.05024178,0.000149,2]
[356843594,1743318631577,-4309.6899302,0.000149,2]
[356843595,1743318631588,-4547.99192802,0.000149,2]
[356843596,1743318631598,-4463.0039212,0.000149,2]
[356843597,1743318631610,-1816.6514788,0.000149,2]
[356843598,1743318631619,-150.0,0.000153,2]
[356843599,1743318631628,-255.0,0.00016031,2]
[356843600,1743318631637,-167.74,0.00016712,2]
[356843601,1743318631646,-433.0,0.00017253,2]
[356843602,1743318631655,-250.0,0.00019687,2]
[356843603,1743318631664,-166.01,0.000208,2]
[356843604,1743318631673,-150.0,0.00021917,2]
[356843605,1743318631683,-4534.02047317,0.00023277,2]
[356843606,1743318631692,-475.35573442,0.00023286,2]
[356843607,1743318631701,-500.0,0.00023286,2]
[356843608,1743318631711,-369.92839531,0.00023286,2]
[356843609,1743318631720,-4566.41,0.00023286,2]
[356843610,1743318631729,-150.0,0.00023287,2]
[356843611,1743318631738,-9999.99,0.00023287,2]
[356843612,1743318631748,-6035.96,0.00023287,2]
[356843613,1743318631757,-19999.99,0.00023287,2]
[356843614,1743318631766,-4768.28,0.00023287,2]
[356843615,1743318631775,-999.99,0.00023287,2]
[356843616,1743318631784,-9999.99,0.00023287,2]
[356843617,1743318631794,-366.25,0.00023287,2]
[356843618,1743318631803,-150.99,0.00023287,2]
[356843619,1743318631812,-188.82,0.00023287,2]
[356843620,1743318631821,-1000.0,0.00023649,2]
[356843621,1743318631830,-575.261,0.00023745,2]
[356843622,1743318631839,-1427.959,0.00023745,2]
[356843623,1743318631849,-789.0,0.00023745,2]
[356843624,1743318631858,-1274.0,0.00023745,2]
[356843625,1743318631867,-3019.769,0.00023745,2]
[356843626,1743318631877,-3947.0,0.00023745,2]
[356843627,1743318631886,-151.0,0.00023745,2]
[356843628,1743318631894,-314.8604,0.00024465,2]
[356843629,1743318631904,-181.237,0.00024565,2]
[356843630,1743318631913,-171.53,0.00024565,2]
[356843631,1743318631923,-176.398,0.00024565,2]
[356843632,1743318631932,-1283.0,0.00024565,2]
[356843633,1743318631941,-2039.0,0.00024565,2]
[356843634,1743318631951,-150.0,0.00024657,2]
[356843636,1743318631960,-7055.9057729,0.0002466,2]
[356843638,1743318631969,-1007.55131914,0.00024791,2]
[356843640,1743318631979,-200.0,0.00024818,2]
[356843642,1743318631988,-151.0,0.000249,7]
[356843643,1743318631998,-151.0,0.000249,7]
[356843645,1743318632007,-151.0,0.000249,7]
[356843647,1743318632017,-151.0,0.000249,7]
[356843649,1743318632027,-151.0,0.000249,7]
[356843651,1743318632036,-151.0,0.000249,7]
[356843653,1743318632045,-151.0,0.000249,7]
[356843655,1743318632055,-151.0,0.000249,7]
[356843657,1743318632063,-253.507506,0.000249,7]
[356843659,1743318632074,-340.901456,0.000249,7]
[356843661,1743318632083,-340.901456,0.000249,7]
[356843663,1743318632092,-253.507506,0.000249,7]
[356843664,1743318632101,-151.0,0.000249,7]
[356843666,1743318632110,-403.24109,0.000249,7]
[356843668,1743318632120,-403.24109,0.000249,7]
[356843670,1743318632129,-200.0,0.000249,2]
[356843672,1743318632139,-2114.4604492,0.00024914,2]
[356843674,1743318632148,-2193.59685,0.00024914,2]
[356843677,1743318632158,-1692.3088805,0.00024931,2]
[356843680,1743318632168,-403.5570544,0.00024948,2]
[356843683,1743318632177,-964.3250254,0.00024948,2]
[356843686,1743318632187,-250.0,0.00024989,2]
[356843689,1743318632197,-173.632,0.00024989,2]
[356843692,1743318632206,-173.632,0.00024989,2]
[356843695,1743318632215,-173.632,0.00024989,2]
[356843698,1743318632225,-250.0,0.00025,2]
[356843701,1743318632234,-1338.53,0.00025071,2]
[356843704,1743318632243,-11614.52,0.00025082,2]
[356843706,1743318632252,-1000.0,0.00025094,2]
[356843707,1743318632262,-1000.0,0.00025106,2]
[356843709,1743318632271,-3268.5,0.00025138,2]
[356843710,1743318632280,-200.0,0.00025149,2]
[356843712,1743318632290,-357.31735032,0.00025164,2]
[356843714,1743318632299,-500.0,0.00025164,2]
[356843716,1743318632308,-400.05886966,0.00025182,2]
[356843718,1743318632318,-662.47,0.00025209,2]
[356843720,1743318632327,-500.0,0.00025225,2]
[356843722,1743318632337,-150.0,0.00025226,2]
[356843724,1743318632349,-619.21,0.00025235,2]
[356843726,1743318632359,-662.47,0.00025262,2]
[356843728,1743318632368,-662.47,0.00025315,2]
[356843730,1743318632378,-317.13,0.00025328,2]
[356843732,1743318632388,-162.56,0.00025357,2]
[356843734,1743318632398,-662.47,0.00025368,2]
[356843736,1743318632407,-662.47,0.00025421,2]
[356843738,1743318632417,-662.47,0.00025474,2]
[356843740,1743318632427,-662.47,0.00025527,2]
[356843742,1743318632436,-662.47,0.0002558,2]
[356843744,1743318632446,-662.47,0.00025633,2]
[356843746,1743318632455,-662.47,0.00025686,2]
[356843748,1743318632464,-662.47,0.00025739,2]
[356843749,1743318632473,-662.47,0.00025792,2]
[356843750,1743318632483,-228.05,0.000258,7]
[356843751,1743318632492,-827.89,0.00025827,2]
[356843753,1743318632501,-662.47,0.00025845,2]
[356843755,1743318632511,-662.47,0.00025898,2]
[356843757,1743318632520,-662.47,0.00025951,2]
[356843759,1743318632529,-662.47,0.00026005,2]
[356843761,1743318632539,-23900.0,0.00026023,2]
[356843763,1743318632548,-150.0,0.00026027,2]
[356843765,1743318632557,-662.47,0.00026058,2]
[356843767,1743318632567,-662.47,0.00026111,2]
[356843769,1743318632576,-662.47,0.00026164,2]
[356843771,1743318632585,-662.47,0.00026217,2]
[356843773,1743318632594,-1555.25,0.00026589,2]
[356843775,1743318632603,-150.0,0.0002663,2]
[356843777,1743318632613,-788.0,0.00026745,2]
[356843779,1743318632623,-1274.0,0.00026745,2]
[356843781,1743318632632,-3457.471,0.00026745,2]
[356843783,1743318632642,-378.35,0.00026849,2]
[356843785,1743318632651,-300.0,0.00027,2]
[356843787,1743318632660,-185.381,0.0002702,15]
[356843789,1743318632670,-150.0,0.00027397,2]
[356843791,1743318632679,-4941.78,0.00027397,2]
[356843793,1743318632688,-233.0,0.000278,2]
[356843795,1743318632697,-187.0,0.0002783,15]
[356843797,1743318632707,-200.0,0.00027974,2]
[356843799,1743318632716,-150.0,0.00028,2]
[356843801,1743318632725,-1907.56457213,0.00028093,2]
[356843803,1743318632735,-1000.0,0.00028244,2]
[356843805,1743318632744,-529.23724448,0.00028285,2]
[356843807,1743318632753,-150.0,0.00028377,7]
[356843809,1743318632762,-235.25,0.00028378,2]
[356843811,1743318632771,-150.0,0.00028767,2]
[356843813,1743318632781,-4941.78,0.00028767,2]
[356843815,1743318632790,-1555.25,0.00028853,2]
[356843817,1743318632800,-510.50036076,0.000289,17]
[356843819,1743318632809,-666.6,0.00028901,2]
[356843821,1743318632819,-1852.42,0.00028928,2]
[356843823,1743318632829,-195.94,0.00028986,2]
[356843825,1743318632838,-11000.0,0.00029,2]
[356843827,1743318632847,-350.0,0.00029,2]
[356843829,1743318632856,-100246.83939216,0.00029,2]
[356843831,1743318632865,-1004.0,0.0003,2]
[356843833,1743318632874,-212.0,0.0003,2]
[356843835,1743318632884,-1848.11,0.0003011,2]
[356843837,1743318632893,-150.0,0.00030136,2]
[356843838,1743318632901,-200.0,0.00030137,2]
[356843839,1743318632910,-4941.78,0.00030137,2]
[356843840,1743318632919,-3847.85088897,0.00030175,2]
[356843841,1743318632928,-986.0,0.000303,2]
[356843842,1743318632937,-369.0,0.000303,2]
[356843843,1743318632947,-753.0,0.000303,2]
[356843844,1743318632956,-180.48,0.0003044,2]
[356843845,1743318632966,-3210.89338537,0.00030671,2]
[356843846,1743318632975,-444.05,0.0003089,2]
[356843847,1743318632984,-782.79,0.0003089,2]
[356843848,1743318632993,-452.17,0.0003089,2]
[356843849,1743318633003,-807.8,0.0003089,2]
[356843850,1743318633011,-444.05,0.0003089,2]
[356843851,1743318633021,-1337.6031,0.00030967,2]
[356843852,1743318633031,-400.0,0.00031,2]
[356843853,1743318633041,-1555.25,0.00031117,2]
[356843854,1743318633051,-1000.0,0.00031382,2]
[356843855,1743318633061,-150.0,0.00031415,2]
[356843856,1743318633071,-1538.13843965,0.00031498,2]
[356843857,1743318633081,-150.0,0.00031506,2]
[356843858,1743318633091,-4941.78,0.00031507,2]
[356843859,1743318633101,-150.0,0.00031507,2]
[356843861,1743318633111,-150.0,0.0003151,2]
[356843863,1743318633120,-150.0,0.00031518,2]
[356843864,1743318633130,-150.0,0.00031683,2]
[356843866,1743318633139,-1000.0,0.00031684,2]
[356843868,1743318633149,-150.0,0.00031721,2]
[356843869,1743318633159,-150.0,0.00031748,2]
[356843870,1743318633168,-1000.0,0.00031749,2]
[356843871,1743318633178,-150.0,0.00031776,2]
[356843872,1743318633187,-150.0,0.00031785,2]
[356843873,1743318633197,-150.0,0.00031821,2]
[356843874,1743318633206,-150.0,0.00031838,2]
[356843875,1743318633216,-782.79,0.00031849,2]
[356843876,1743318633225,-444.05,0.00031849,2]
[356843877,1743318633235,-782.79,0.00031849,2]
[356843878,1743318633389,-782.79,0.00031849,2]
[356843879,1743318633399,-441.57,0.00031849,2]
[356843880,1743318633409,-1460.35,0.00031849,2]
[356843881,1743318633419,-150.0,0.00031854,2]
[356843882,1743318633429,-150.0,0.00031856,2]
[356843883,1743318633438,-150.0,0.0003186,2]
[356843884,1743318633448,-150.0,0.00031867,2]
[356843885,1743318633458,-150.0,0.00031876,2]
[356843886,1743318633467,-150.0,0.00031876,2]
[356843887,1743318633476,-150.0,0.00031903,2]
[356843888,1743318633486,-150.0,0.00031947,2]
[356843889,1743318633495,-1000.0,0.00031955,2]
[356843890,1743318633505,-150.0,0.00031971,2]
[356843891,1743318633514,-150.0,0.00031984,2]
[356843892,1743318633523,-1000.0,0.00031988,2]
[356843893,1743318633532,-150.0,0.0003199,2]
[356843894,1743318633542,-150.0,0.00031995,2]
[356843895,1743318633552,-150.0,0.00031997,2]
[356843896,1743318633562,-150.0,0.00032003,2]
[356843897,1743318633571,-501.17055933,0.0003201,5]
[356843898,1743318633581,-150.0,0.00032029,2]
[356843899,1743318633591,-1000.0,0.00032085,2]
[356843900,1743318633600,-1000.0,0.00032092,2]
[356843901,1743318633609,-150.0,0.00032103,2]
[356843902,1743318633619,-1000.0,0.00032104,2]
[356843903,1743318633628,-346.99,0.00032123,2]
[356843904,1743318633638,-154.42,0.00032123,2]
[356843905,1743318633647,-150.0,0.00032123,2]
[356843906,1743318633657,-152.31,0.00032123,2]
[356843907,1743318633667,-150.0,0.00032123,2]
[356843908,1743318633676,-150.0,0.00032123,2]
[356843909,1743318633686,-150.0,0.00032123,2]
[356843910,1743318633697,-346.99,0.00032123,2]
[356843911,1743318633706,-150.0,0.00032123,2]
[356843912,1743318633716,-150.0,0.00032123,2]
[356843913,1743318633725,-150.0,0.00032123,2]
[356843914,1743318633734,-150.0,0.00032123,2]
[356843915,1743318633744,-346.99,0.00032123,2]
[356843916,1743318633753,-150.0,0.00032123,2]
[356843917,1743318633763,-443.48,0.00032123,2]
[356843918,1743318633772,-346.99,0.00032123,2]
[356843919,1743318633781,-150.0,0.00032123,2]
[356843920,1743318633791,-443.48,0.00032123,2]
[356843921,1743318633800,-150.0,0.00032123,2]
[356843922,1743318633809,-150.0,0.00032152,2]
[356843923,1743318633819,-150.0,0.00032162,2]
[356843924,1743318633828,-150.0,0.00032166,2]
[356843925,1743318633838,-150.0,0.00032168,2]
[356843926,1743318633848,-150.0,0.00032172,2]
[356843927,1743318633858,-150.0,0.00032172,2]
[356843928,1743318633867,-150.0,0.00032196,2]
[356843929,1743318633877,-150.0,0.00032208,2]
[356843930,1743318633886,-150.0,0.00032209,2]
[356843931,1743318633896,-150.0,0.00032225,2]
[356843932,1743318633905,-1000.0,0.0003223,2]
[356843933,1743318633915,-150.0,0.00032237,2]
[356843934,1743318633924,-150.0,0.0003224,2]
[356843935,1743318633934,-150.0,0.00032255,2]
[356843936,1743318633943,-1092.94697541,0.00032264,5]
[356843937,1743318633952,-1140.85068692,0.00032264,5]
[356843938,1743318633963,-1060.1706946,0.00032265,5]
[356843939,1743318633973,-1000.0,0.00032268,2]
[356843940,1743318633983,-1000.0,0.0003227,2]
[356843941,1743318633993,-150.0,0.00032272,2]
[356843942,1743318634003,-150.0,0.0003228,2]
[356843943,1743318634012,-150.0,0.00032288,2]
[356843944,1743318634022,-1062.66255522,0.00032288,5]
[356843945,1743318634032,-1000.0,0.00032292,2]
[356843946,1743318634041,-150.0,0.00032293,2]
[356843947,1743318634051,-150.0,0.00032293,2]
[356843948,1743318634061,-150.0,0.00032297,2]
[356843949,1743318634070,-150.0,0.00032299,2]
[356843950,1743318634080,-2000.0,0.000323,2]
[356843951,1743318634090,-2000.0,0.000323,2]
[356843952,1743318634100,-150.0,0.00032301,2]
[356843953,1743318634109,-150.0,0.00032313,2]
[356843954,1743318634119,-1000.0,0.00032313,2]
[356843955,1743318634128,-150.0,0.00032327,2]
[356843956,1743318634137,-150.0,0.00032329,2]
[356843957,1743318634147,-150.0,0.00032335,2]
[356843958,1743318634156,-150.0,0.00032338,2]
[356843959,1743318634165,-150.0,0.00032338,2]
[356843960,1743318634175,-150.0,0.0003234,2]
[356843961,1743318634185,-1000.0,0.00032348,2]
[356843962,1743318634195,-150.0,0.00032353,2]
[356843963,1743318634204,-150.0,0.00032357,2]
[356843964,1743318634214,-150.0,0.00032362,2]
[356843965,1743318634224,-1000.0,0.00032367,2]
[356843966,1743318634234,-150.0,0.0003237,2]
[356843967,1743318634244,-1000.0,0.00032374,2]
[356843968,1743318634253,-150.0,0.00032382,2]
[356843969,1743318634263,-150.0,0.00032388,2]
[356843970,1743318634274,-150.0,0.000324,2]
[356843971,1743318634284,-150.0,0.00032407,2]
[356843972,1743318634295,-1075.86161667,0.00032425,2]
[356843973,1743318634304,-150.0,0.00032432,2]
[356843974,1743318634314,-1000.0,0.00032439,2]
[356843975,1743318634323,-150.0,0.00032441,2]
[356843976,1743318634333,-1000.0,0.00032442,2]
[356843977,1743318634347,-150.0,0.00032448,2]
[356843978,1743318634357,-150.0,0.0003245,2]
[356843979,1743318634366,-150.0,0.00032455,2]
[356843980,1743318634375,-150.0,0.00032457,2]
[356843981,1743318634386,-150.0,0.0003246,2]
[356843982,1743318634395,-152.25677197,0.00032467,2]
[356843983,1743318634404,-1000.0,0.00032467,2]
[356843984,1743318634414,-7267.78771166,0.00032474,2]
[356843985,1743318634424,-1000.0,0.00032484,2]
[356843986,1743318634434,-150.0,0.00032487,2]
[356843987,1743318634444,-150.0,0.00032501,2]
[356843988,1743318634453,-150.0,0.00032504,2]
[356843989,1743318634463,-150.0,0.0003251,2]
[356843990,1743318634472,-150.0,0.00032513,2]
[356843991,1743318634482,-150.0,0.00032516,2]
[356843992,1743318634491,-150.0,0.00032527,2]
[356843993,1743318634501,-1000.0,0.00032544,2]
[356843994,1743318634511,-1000.0,0.00032546,2]
[356843995,1743318634520,-150.0,0.00032548,2]
[356843996,1743318634530,-150.0,0.0003255,2]
[356843997,1743318634539,-150.0,0.00032558,2]
[356843998,1743318634549,-150.0,0.00032564,2]
[356843999,1743318634557,-150.0,0.00032568,2]
[356844000,1743318634567,-150.0,0.0003257,2]
[356844001,1743318634576,-150.0,0.00032576,2]
[356844002,1743318634585,-150.0,0.00032582,2]
[356844003,1743318634595,-150.0,0.00032587,2]
[356844004,1743318634604,-1000.0,0.0003259,2]
[356844005,1743318634613,-1000.0,0.00032593,2]
[356844006,1743318634622,-150.0,0.00032597,2]
[356844007,1743318634632,-150.0,0.00032603,2]
[356844008,1743318634641,-150.0,0.00032605,2]